Workbook

Sheet OBJETIVOS
B1: =TODAY() -> 2017-05-09 | C1: OBJETIVOS | J1: Exercício | K1: Dieta
B2: DATA DE INÍCIO | C2: DIÁRIO DE DIETA E EXERCÍCIO
B3: =DataDeInício+121 -> 2017-09-07 | C3: ANÁLISE DA DIETA
B5: DATA DE FIM
B6: 100.00
B7: PESO INICIAL
B8: 80.00 | C8: ANÁLISE DO EXERCÍCIO
B10: PESO FINAL
B11: =PesoInicial-PesoFinal -> 20
B12: PERDA DE PESO PRETENDIDA
B13: =DataDeFim-DataDeInício -> 121
B14: DIAS PARA PERDER
B15: =PesoPretendido/B13 -> 0.17
B16: PESO PERDIDO POR DIA

Sheet DIETA
B1: DIETA | G1: Objetivos | H1: Exercício
B2: =Subtítulo -> DIÁRIO DE DIETA E EXERCÍCIO
B3: DATA | C3: HORA | D3: DESCRIÇÃO | E3: CALORIAS | F3: HIDRATOS DE CARBONO | G3: PROTEÍNAS | H3: GORDURA | I3: NOTAS
B4: =DataDeInício -> 2017-05-09 | C4: 07:00:00 | D4: Café | E4: 1 | F4: 0 | G4: 0 | H4: 0 | I4: Café da manhã
B5: =DataDeInício -> 2017-05-09 | C5: 08:00:00 | D5: Bagel | E5: 10 | F5: 10 | G5: 2 | H5: 10 | I5: Pequeno-almoço ligeiro
B6: =DataDeInício -> 2017-05-09 | C6: 12:00:00 | D6: Almoço | E6: 283 | F6: 46 | G6: 18 | H6: 4 | I6: Sanduíche de peru
B7: =DataDeInício -> 2017-05-09 | C7: 19:00:00 | D7: Jantar | E7: 500 | F7: 42 | G7: 35 | H7: 25 | I7: Caçarola de batatas
B8: =DataDeInício+1 -> 2017-05-10 | C8: 07:00:00 | D8: Café | E8: 1 | F8: 0 | G8: 0 | H8: 0 | I8: Café da manhã
B9: =DataDeInício+1 -> 2017-05-10 | C9: 08:00:00 | D9: Torrada | E9: 10 | F9: 10 | G9: 2 | H9: 10 | I9: Pequeno-almoço ligeiro
B10: =DataDeInício+1 -> 2017-05-10 | C10: 12:00:00 | D10: Almoço | E10: 189 | F10: 26 | G10: 3 | H10: 8 | I10: Sanduíche
B11: =DataDeInício+1 -> 2017-05-10 | C11: 19:00:00 | D11: Jantar | E11: 477 | F11: 62 | G11: 14 | H11: 21 | I11: Jantar
B12: =DataDeInício+2 -> 2017-05-11 | C12: 07:00:00 | D12: Café | E12: 1 | F12: 0 | G12: 0 | H12: 0 | I12: Café da manhã
B13: =DataDeInício+2 -> 2017-05-11 | C13: 08:00:00 | D13: Bagel | E13: 245 | F13: 48 | G13: 10 | H13: 2 | I13: Pequeno-almoço ligeiro
B14: =DataDeInício+2 -> 2017-05-11 | C14: 12:00:00 | D14: Almoço | E14: 247 | F14: 11 | G14: 43 | H14: 5 | I14: Salada
B15: =DataDeInício+2 -> 2017-05-11 | C15: 19:00:00 | D15: Jantar | E15: 456 | F15: 64 | G15: 32 | H15: 22 | I15: Jantar
B16: =DataDeInício+3 -> 2017-05-12 | C16: 07:00:00 | D16: Torrada | E16: 10 | F16: 10 | G16: 2 | H16: 10 | I16: Pequeno-almoço ligeiro
B17: =DataDeInício+3 -> 2017-05-12 | C17: 10:00:00 | D17: Café | E17: 135 | F17: 12 | G17: 9 | H17: 6 | I17: Latte
B18: =DataDeInício+3 -> 2017-05-12 | C18: 12:15:00 | D18: Almoço | E18: 184 | F18: 7 | G18: 5 | H18: 15 | I18: Salada
B19: =DataDeInício+5 -> 2017-05-14 | C19: 19:00:00 | D19: Jantar | E19: 477 | F19: 62 | G19: 14 | H19: 21 | I19: Jantar

Sheet EXERCÍCIO
B1: EXERCÍCIO | F1: Dieta | G1: Objetivos
B2: =Subtítulo -> DIÁRIO DE DIETA E EXERCÍCIO
B3: DATA | C3: DURAÇÃO (MIN) | D3: CALORIAS QUEIMADAS | E3: NOTAS
B4: =DataDeInício+4 -> 2017-05-13 | C4: 30 | D4: 120 | E4: Exercício de passadeira
B5: =B4+1 -> 2017-05-14 | C5: 60 | D5: 180 | E5: Aeróbica de baixo impacto
B6: =B5+1 -> 2017-05-15 | C6: 60 | D6: 350 | E6: Exercício extremo
B7: 2017-05-16 | C7: 30 | D7: 150 | E7: Exercício de passadeira
B8: 2017-05-17 | C8: 25 | D8: 125 | E8: Corrida
B9: 2017-05-18 | C9: 20 | D9: 285 | E9: Exercício de passadeira
B10: 2017-05-19 | C10: 40 | D10: 205 | E10: Corrida
B11: 2017-05-20 | C11: 30 | D11: 335 | E11: Corrida
B12: 2017-05-21 | C12: 40 | D12: 175 | E12: Corrida
B13: 2017-05-22 | C13: 45 | D13: 325 | E13: Exercício de passadeira
B14: 2017-05-23 | C14: 40 | D14: 270 | E14: Corrida
B15: 2017-05-24 | C15: 20 | D15: 295 | E15: Exercício de passadeira
B16: =B15+1 -> 2017-05-25 | C16: 45 | D16: 350 | E16: Corrida
B17: 2017-05-26 | C17: 35 | D17: 320 | E17: Corrida
B18: 2017-05-27 | C18: 40 | D18: 290 | E18: Corrida
B19: =B18+1 -> 2017-05-28 | C19: 25 | D19: 265 | E19: Exercício de passadeira
B20: 2017-05-29 | C20: 20 | D20: 195 | E20: Corrida

Sheet Gráfico de Cálculos (hidden)
B2: DADOS DO GRÁFICO DE ANÁLISE DA DIETA
B4: Linha inicial | C4: =ROW(Dieta[[#Headers],[DATA]])+1 -> 4 | D4: DATA | E4: DIA | F4: GORDURA | G4: PROTEÍNAS | H4: HIDRATOS DE CARBONO | I4: CALORIAS | J4: Número
B5: Última entrada da dieta | C5: =MATCH(9.99E+307,Dieta[DATA])+LinhaInicialDaDieta-1 -> 19 | D5: =IFERROR(IF(INDEX(Dieta[],FimDaDieta-LinhaInicialDaDieta-J5,1)<>"",INDEX(Dieta[],FimDaDieta-LinhaInicialDaDieta-J5,1),""),"") -> 2017-05-09 | E5: =UPPER(TEXT(D5,"DDD")) -> TER | F5: =IFERROR((IF(INDEX(Dieta[],FimDaDieta-LinhaInicialDaDieta-J5,1)<>"",INDEX(Dieta[],FimDaDieta-LinhaInicialDaDieta-J5,7),NA())),NA()) -> 3.5 | G5: =IFERROR((IF(INDEX(Dieta[],FimDaDieta-LinhaInicialDaDieta-J5,1)<>"",INDEX(Dieta[],FimDaDieta-LinhaInicialDaDieta-J5,6),NA())),NA()) -> 18 | H5: =IFERROR((IF(INDEX(Dieta[],FimDaDieta-LinhaInicialDaDieta-J5,1)<>"",INDEX(Dieta[],FimDaDieta-LinhaInicialDaDieta-J5,5),NA())),NA()) -> 46 | I5: =IFERROR((IF(INDEX(Dieta[],FimDaDieta-LinhaInicialDaDieta-J5,1)<>"",INDEX(Dieta[],FimDaDieta-LinhaInicialDaDieta-J5,4),NA())),NA()) -> 283 | J5: 12
D6: =IFERROR(IF(INDEX(Dieta[],FimDaDieta-LinhaInicialDaDieta-J6,1)<>"",INDEX(Dieta[],FimDaDieta-LinhaInicialDaDieta-J6,1),""),"") -> 2017-05-09 | E6: TER | F6: =IFERROR((IF(INDEX(Dieta[],FimDaDieta-LinhaInicialDaDieta-J6,1)<>"",INDEX(Dieta[],FimDaDieta-LinhaInicialDaDieta-J6,7),NA())),NA()) -> 25 | G6: =IFERROR((IF(INDEX(Dieta[],FimDaDieta-LinhaInicialDaDieta-J6,1)<>"",INDEX(Dieta[],FimDaDieta-LinhaInicialDaDieta-J6,6),NA())),NA()) -> 35 | H6: =IFERROR((IF(INDEX(Dieta[],FimDaDieta-LinhaInicialDaDieta-J6,1)<>"",INDEX(Dieta[],FimDaDieta-LinhaInicialDaDieta-J6,5),NA())),NA()) -> 42 | I6: =IFERROR((IF(INDEX(Dieta[],FimDaDieta-LinhaInicialDaDieta-J6,1)<>"",INDEX(Dieta[],FimDaDieta-LinhaInicialDaDieta-J6,4),NA())),NA()) -> 500 | J6: 11
D7: =IFERROR(IF(INDEX(Dieta[],FimDaDieta-LinhaInicialDaDieta-J7,1)<>"",INDEX(Dieta[],FimDaDieta-LinhaInicialDaDieta-J7,1),""),"") -> 2017-05-10 | E7: QUA | F7: =IFERROR((IF(INDEX(Dieta[],FimDaDieta-LinhaInicialDaDieta-J7,1)<>"",INDEX(Dieta[],FimDaDieta-LinhaInicialDaDieta-J7,7),NA())),NA()) -> 0 | G7: =IFERROR((IF(INDEX(Dieta[],FimDaDieta-LinhaInicialDaDieta-J7,1)<>"",INDEX(Dieta[],FimDaDieta-LinhaInicialDaDieta-J7,6),NA())),NA()) -> 0 | H7: =IFERROR((IF(INDEX(Dieta[],FimDaDieta-LinhaInicialDaDieta-J7,1)<>"",INDEX(Dieta[],FimDaDieta-LinhaInicialDaDieta-J7,5),NA())),NA()) -> 0 | I7: =IFERROR((IF(INDEX(Dieta[],FimDaDieta-LinhaInicialDaDieta-J7,1)<>"",INDEX(Dieta[],FimDaDieta-LinhaInicialDaDieta-J7,4),NA())),NA()) -> 1 | J7: 10
D8: =IFERROR(IF(INDEX(Dieta[],FimDaDieta-LinhaInicialDaDieta-J8,1)<>"",INDEX(Dieta[],FimDaDieta-LinhaInicialDaDieta-J8,1),""),"") -> 2017-05-10 | E8: QUA | F8: =IFERROR((IF(INDEX(Dieta[],FimDaDieta-LinhaInicialDaDieta-J8,1)<>"",INDEX(Dieta[],FimDaDieta-LinhaInicialDaDieta-J8,7),NA())),NA()) -> 10 | G8: =IFERROR((IF(INDEX(Dieta[],FimDaDieta-LinhaInicialDaDieta-J8,1)<>"",INDEX(Dieta[],FimDaDieta-LinhaInicialDaDieta-J8,6),NA())),NA()) -> 2 | H8: =IFERROR((IF(INDEX(Dieta[],FimDaDieta-LinhaInicialDaDieta-J8,1)<>"",INDEX(Dieta[],FimDaDieta-LinhaInicialDaDieta-J8,5),NA())),NA()) -> 10 | I8: =IFERROR((IF(INDEX(Dieta[],FimDaDieta-LinhaInicialDaDieta-J8,1)<>"",INDEX(Dieta[],FimDaDieta-LinhaInicialDaDieta-J8,4),NA())),NA()) -> 10 | J8: 9
D9: =IFERROR(IF(INDEX(Dieta[],FimDaDieta-LinhaInicialDaDieta-J9,1)<>"",INDEX(Dieta[],FimDaDieta-LinhaInicialDaDieta-J9,1),""),"") -> 2017-05-10 | E9: QUA | F9: =IFERROR((IF(INDEX(Dieta[],FimDaDieta-LinhaInicialDaDieta-J9,1)<>"",INDEX(Dieta[],FimDaDieta-LinhaInicialDaDieta-J9,7),NA())),NA()) -> 8 | G9: =IFERROR((IF(INDEX(Dieta[],FimDaDieta-LinhaInicialDaDieta-J9,1)<>"",INDEX(Dieta[],FimDaDieta-LinhaInicialDaDieta-J9,6),NA())),NA()) -> 3 | H9: =IFERROR((IF(INDEX(Dieta[],FimDaDieta-LinhaInicialDaDieta-J9,1)<>"",INDEX(Dieta[],FimDaDieta-LinhaInicialDaDieta-J9,5),NA())),NA()) -> 26 | I9: =IFERROR((IF(INDEX(Dieta[],FimDaDieta-LinhaInicialDaDieta-J9,1)<>"",INDEX(Dieta[],FimDaDieta-LinhaInicialDaDieta-J9,4),NA())),NA()) -> 189 | J9: 8
D10: =IFERROR(IF(INDEX(Dieta[],FimDaDieta-LinhaInicialDaDieta-J10,1)<>"",INDEX(Dieta[],FimDaDieta-LinhaInicialDaDieta-J10,1),""),"") -> 2017-05-10 | E10: QUA | F10: =IFERROR((IF(INDEX(Dieta[],FimDaDieta-LinhaInicialDaDieta-J10,1)<>"",INDEX(Dieta[],FimDaDieta-LinhaInicialDaDieta-J10,7),NA())),NA()) -> 21 | G10: =IFERROR((IF(INDEX(Dieta[],FimDaDieta-LinhaInicialDaDieta-J10,1)<>"",INDEX(Dieta[],FimDaDieta-LinhaInicialDaDieta-J10,6),NA())),NA()) -> 13.5 | H10: =IFERROR((IF(INDEX(Dieta[],FimDaDieta-LinhaInicialDaDieta-J10,1)<>"",INDEX(Dieta[],FimDaDieta-LinhaInicialDaDieta-J10,5),NA())),NA()) -> 62 | I10: =IFERROR((IF(INDEX(Dieta[],FimDaDieta-LinhaInicialDaDieta-J10,1)<>"",INDEX(Dieta[],FimDaDieta-LinhaInicialDaDieta-J10,4),NA())),NA()) -> 477 | J10: 7
D11: =IFERROR(IF(INDEX(Dieta[],FimDaDieta-LinhaInicialDaDieta-J11,1)<>"",INDEX(Dieta[],FimDaDieta-LinhaInicialDaDieta-J11,1),""),"") -> 2017-05-11 | E11: QUI | F11: =IFERROR((IF(INDEX(Dieta[],FimDaDieta-LinhaInicialDaDieta-J11,1)<>"",INDEX(Dieta[],FimDaDieta-LinhaInicialDaDieta-J11,7),NA())),NA()) -> 0 | G11: =IFERROR((IF(INDEX(Dieta[],FimDaDieta-LinhaInicialDaDieta-J11,1)<>"",INDEX(Dieta[],FimDaDieta-LinhaInicialDaDieta-J11,6),NA())),NA()) -> 0 | H11: =IFERROR((IF(INDEX(Dieta[],FimDaDieta-LinhaInicialDaDieta-J11,1)<>"",INDEX(Dieta[],FimDaDieta-LinhaInicialDaDieta-J11,5),NA())),NA()) -> 0 | I11: =IFERROR((IF(INDEX(Dieta[],FimDaDieta-LinhaInicialDaDieta-J11,1)<>"",INDEX(Dieta[],FimDaDieta-LinhaInicialDaDieta-J11,4),NA())),NA()) -> 1 | J11: 6
D12: =IFERROR(IF(INDEX(Dieta[],FimDaDieta-LinhaInicialDaDieta-J12,1)<>"",INDEX(Dieta[],FimDaDieta-LinhaInicialDaDieta-J12,1),""),"") -> 2017-05-11 | E12: QUI | F12: =IFERROR((IF(INDEX(Dieta[],FimDaDieta-LinhaInicialDaDieta-J12,1)<>"",INDEX(Dieta[],FimDaDieta-LinhaInicialDaDieta-J12,7),NA())),NA()) -> 1.5 | G12: =IFERROR((IF(INDEX(Dieta[],FimDaDieta-LinhaInicialDaDieta-J12,1)<>"",INDEX(Dieta[],FimDaDieta-LinhaInicialDaDieta-J12,6),NA())),NA()) -> 10 | H12: =IFERROR((IF(INDEX(Dieta[],FimDaDieta-LinhaInicialDaDieta-J12,1)<>"",INDEX(Dieta[],FimDaDieta-LinhaInicialDaDieta-J12,5),NA())),NA()) -> 48 | I12: =IFERROR((IF(INDEX(Dieta[],FimDaDieta-LinhaInicialDaDieta-J12,1)<>"",INDEX(Dieta[],FimDaDieta-LinhaInicialDaDieta-J12,4),NA())),NA()) -> 245 | J12: 5
D13: =IFERROR(IF(INDEX(Dieta[],FimDaDieta-LinhaInicialDaDieta-J13,1)<>"",INDEX(Dieta[],FimDaDieta-LinhaInicialDaDieta-J13,1),""),"") -> 2017-05-11 | E13: QUI | F13: =IFERROR((IF(INDEX(Dieta[],FimDaDieta-LinhaInicialDaDieta-J13,1)<>"",INDEX(Dieta[],FimDaDieta-LinhaInicialDaDieta-J13,7),NA())),NA()) -> 5 | G13: =IFERROR((IF(INDEX(Dieta[],FimDaDieta-LinhaInicialDaDieta-J13,1)<>"",INDEX(Dieta[],FimDaDieta-LinhaInicialDaDieta-J13,6),NA())),NA()) -> 43 | H13: =IFERROR((IF(INDEX(Dieta[],FimDaDieta-LinhaInicialDaDieta-J13,1)<>"",INDEX(Dieta[],FimDaDieta-LinhaInicialDaDieta-J13,5),NA())),NA()) -> 11 | I13: =IFERROR((IF(INDEX(Dieta[],FimDaDieta-LinhaInicialDaDieta-J13,1)<>"",INDEX(Dieta[],FimDaDieta-LinhaInicialDaDieta-J13,4),NA())),NA()) -> 247 | J13: 4
D14: =IFERROR(IF(INDEX(Dieta[],FimDaDieta-LinhaInicialDaDieta-J14,1)<>"",INDEX(Dieta[],FimDaDieta-LinhaInicialDaDieta-J14,1),""),"") -> 2017-05-11 | E14: QUI | F14: =IFERROR((IF(INDEX(Dieta[],FimDaDieta-LinhaInicialDaDieta-J14,1)<>"",INDEX(Dieta[],FimDaDieta-LinhaInicialDaDieta-J14,7),NA())),NA()) -> 22 | G14: =IFERROR((IF(INDEX(Dieta[],FimDaDieta-LinhaInicialDaDieta-J14,1)<>"",INDEX(Dieta[],FimDaDieta-LinhaInicialDaDieta-J14,6),NA())),NA()) -> 32 | H14: =IFERROR((IF(INDEX(Dieta[],FimDaDieta-LinhaInicialDaDieta-J14,1)<>"",INDEX(Dieta[],FimDaDieta-LinhaInicialDaDieta-J14,5),NA())),NA()) -> 64 | I14: =IFERROR((IF(INDEX(Dieta[],FimDaDieta-LinhaInicialDaDieta-J14,1)<>"",INDEX(Dieta[],FimDaDieta-LinhaInicialDaDieta-J14,4),NA())),NA()) -> 456 | J14: 3
D15: =IFERROR(IF(INDEX(Dieta[],FimDaDieta-LinhaInicialDaDieta-J15,1)<>"",INDEX(Dieta[],FimDaDieta-LinhaInicialDaDieta-J15,1),""),"") -> 2017-05-12 | E15: SEX | F15: =IFERROR((IF(INDEX(Dieta[],FimDaDieta-LinhaInicialDaDieta-J15,1)<>"",INDEX(Dieta[],FimDaDieta-LinhaInicialDaDieta-J15,7),NA())),NA()) -> 10 | G15: =IFERROR((IF(INDEX(Dieta[],FimDaDieta-LinhaInicialDaDieta-J15,1)<>"",INDEX(Dieta[],FimDaDieta-LinhaInicialDaDieta-J15,6),NA())),NA()) -> 2 | H15: =IFERROR((IF(INDEX(Dieta[],FimDaDieta-LinhaInicialDaDieta-J15,1)<>"",INDEX(Dieta[],FimDaDieta-LinhaInicialDaDieta-J15,5),NA())),NA()) -> 10 | I15: =IFERROR((IF(INDEX(Dieta[],FimDaDieta-LinhaInicialDaDieta-J15,1)<>"",INDEX(Dieta[],FimDaDieta-LinhaInicialDaDieta-J15,4),NA())),NA()) -> 10 | J15: 2
D16: =IFERROR(IF(INDEX(Dieta[],FimDaDieta-LinhaInicialDaDieta-J16,1)<>"",INDEX(Dieta[],FimDaDieta-LinhaInicialDaDieta-J16,1),""),"") -> 2017-05-12 | E16: SEX | F16: =IFERROR((IF(INDEX(Dieta[],FimDaDieta-LinhaInicialDaDieta-J16,1)<>"",INDEX(Dieta[],FimDaDieta-LinhaInicialDaDieta-J16,7),NA())),NA()) -> 5.51 | G16: =IFERROR((IF(INDEX(Dieta[],FimDaDieta-LinhaInicialDaDieta-J16,1)<>"",INDEX(Dieta[],FimDaDieta-LinhaInicialDaDieta-J16,6),NA())),NA()) -> 8.81 | H16: =IFERROR((IF(INDEX(Dieta[],FimDaDieta-LinhaInicialDaDieta-J16,1)<>"",INDEX(Dieta[],FimDaDieta-LinhaInicialDaDieta-J16,5),NA())),NA()) -> 12.36 | I16: =IFERROR((IF(INDEX(Dieta[],FimDaDieta-LinhaInicialDaDieta-J16,1)<>"",INDEX(Dieta[],FimDaDieta-LinhaInicialDaDieta-J16,4),NA())),NA()) -> 135 | J16: 1
D17: =IFERROR(IF(INDEX(Dieta[],FimDaDieta-LinhaInicialDaDieta-J17,1)<>"",INDEX(Dieta[],FimDaDieta-LinhaInicialDaDieta-J17,1),""),"") -> 2017-05-12 | E17: SEX | F17: =IFERROR((IF(INDEX(Dieta[],FimDaDieta-LinhaInicialDaDieta-J17,1)<>"",INDEX(Dieta[],FimDaDieta-LinhaInicialDaDieta-J17,7),NA())),NA()) -> 15 | G17: =IFERROR((IF(INDEX(Dieta[],FimDaDieta-LinhaInicialDaDieta-J17,1)<>"",INDEX(Dieta[],FimDaDieta-LinhaInicialDaDieta-J17,6),NA())),NA()) -> 5.43 | H17: =IFERROR((IF(INDEX(Dieta[],FimDaDieta-LinhaInicialDaDieta-J17,1)<>"",INDEX(Dieta[],FimDaDieta-LinhaInicialDaDieta-J17,5),NA())),NA()) -> 7 | I17: =IFERROR((IF(INDEX(Dieta[],FimDaDieta-LinhaInicialDaDieta-J17,1)<>"",INDEX(Dieta[],FimDaDieta-LinhaInicialDaDieta-J17,4),NA())),NA()) -> 184 | J17: 0
D18: =IFERROR(IF(INDEX(Dieta[],FimDaDieta-LinhaInicialDaDieta-J18,1)<>"",INDEX(Dieta[],FimDaDieta-LinhaInicialDaDieta-J18,1),""),"") -> 2017-05-14 | E18: DOM | F18: =IFERROR((IF(INDEX(Dieta[],FimDaDieta-LinhaInicialDaDieta-J18,1)<>"",INDEX(Dieta[],FimDaDieta-LinhaInicialDaDieta-J18,7),NA())),NA()) -> 21 | G18: =IFERROR((IF(INDEX(Dieta[],FimDaDieta-LinhaInicialDaDieta-J18,1)<>"",INDEX(Dieta[],FimDaDieta-LinhaInicialDaDieta-J18,6),NA())),NA()) -> 13.5 | H18: =IFERROR((IF(INDEX(Dieta[],FimDaDieta-LinhaInicialDaDieta-J18,1)<>"",INDEX(Dieta[],FimDaDieta-LinhaInicialDaDieta-J18,5),NA())),NA()) -> 62 | I18: =IFERROR((IF(INDEX(Dieta[],FimDaDieta-LinhaInicialDaDieta-J18,1)<>"",INDEX(Dieta[],FimDaDieta-LinhaInicialDaDieta-J18,4),NA())),NA()) -> 477 | J18: -1
B20: DADOS DO GRÁFICO DE ANÁLISE DO EXERCÍCIO
B22: Linha inicial | C22: =ROW(Exercício[[#Headers],[DATA]])+1 -> 4 | D22: DATA | E22: DIA | F22: DURAÇÃO (MIN) | G22: CALORIAS QUEIMADAS | H22: Número
B23: Última entrada do exercício | C23: =MATCH(9.99E+307,Exercício[DATA])+LinhaInicialDoExercício-1 -> 20 | D23: =IFERROR(IF(INDEX(Exercício[],FimDoExercício-LinhaInicialDoExercício-H23,1)<>"",INDEX(Exercício[],FimDoExercício-LinhaInicialDoExercício-H23,1)),"") -> 2017-05-29 | E23: =UPPER(TEXT(D23,"DDD")) -> SEG | F23: =IFERROR((IF(INDEX(Exercício[],FimDoExercício-LinhaInicialDoExercício-H23,1)<>"",INDEX(Exercício[],FimDoExercício-LinhaInicialDoExercício-H23,2),0)),0) -> 20 | G23: =IFERROR((IF(INDEX(Exercício[],FimDoExercício-LinhaInicialDoExercício-H23,2)<>"",INDEX(Exercício[],FimDoExercício-LinhaInicialDoExercício-H23,3),0)),0) -> 195 | H23: -1
D24: =IFERROR(IF(INDEX(Exercício[],FimDoExercício-LinhaInicialDoExercício-H24,1)<>"",INDEX(Exercício[],FimDoExercício-LinhaInicialDoExercício-H24,1)),"") -> 2017-05-28 | E24: DOM | F24: =IFERROR((IF(INDEX(Exercício[],FimDoExercício-LinhaInicialDoExercício-H24,1)<>"",INDEX(Exercício[],FimDoExercício-LinhaInicialDoExercício-H24,2),0)),0) -> 25 | G24: =IFERROR((IF(INDEX(Exercício[],FimDoExercício-LinhaInicialDoExercício-H24,2)<>"",INDEX(Exercício[],FimDoExercício-LinhaInicialDoExercício-H24,3),0)),0) -> 265 | H24: 0
D25: =IFERROR(IF(INDEX(Exercício[],FimDoExercício-LinhaInicialDoExercício-H25,1)<>"",INDEX(Exercício[],FimDoExercício-LinhaInicialDoExercício-H25,1)),"") -> 2017-05-27 | E25: SÁB | F25: =IFERROR((IF(INDEX(Exercício[],FimDoExercício-LinhaInicialDoExercício-H25,1)<>"",INDEX(Exercício[],FimDoExercício-LinhaInicialDoExercício-H25,2),0)),0) -> 40 | G25: =IFERROR((IF(INDEX(Exercício[],FimDoExercício-LinhaInicialDoExercício-H25,2)<>"",INDEX(Exercício[],FimDoExercício-LinhaInicialDoExercício-H25,3),0)),0) -> 290 | H25: 1
D26: =IFERROR(IF(INDEX(Exercício[],FimDoExercício-LinhaInicialDoExercício-H26,1)<>"",INDEX(Exercício[],FimDoExercício-LinhaInicialDoExercício-H26,1)),"") -> 2017-05-26 | E26: SEX | F26: =IFERROR((IF(INDEX(Exercício[],FimDoExercício-LinhaInicialDoExercício-H26,1)<>"",INDEX(Exercício[],FimDoExercício-LinhaInicialDoExercício-H26,2),0)),0) -> 35 | G26: =IFERROR((IF(INDEX(Exercício[],FimDoExercício-LinhaInicialDoExercício-H26,2)<>"",INDEX(Exercício[],FimDoExercício-LinhaInicialDoExercício-H26,3),0)),0) -> 320 | H26: 2
D27: =IFERROR(IF(INDEX(Exercício[],FimDoExercício-LinhaInicialDoExercício-H27,1)<>"",INDEX(Exercício[],FimDoExercício-LinhaInicialDoExercício-H27,1)),"") -> 2017-05-25 | E27: QUI | F27: =IFERROR((IF(INDEX(Exercício[],FimDoExercício-LinhaInicialDoExercício-H27,1)<>"",INDEX(Exercício[],FimDoExercício-LinhaInicialDoExercício-H27,2),0)),0) -> 45 | G27: =IFERROR((IF(INDEX(Exercício[],FimDoExercício-LinhaInicialDoExercício-H27,2)<>"",INDEX(Exercício[],FimDoExercício-LinhaInicialDoExercício-H27,3),0)),0) -> 350 | H27: 3
D28: =IFERROR(IF(INDEX(Exercício[],FimDoExercício-LinhaInicialDoExercício-H28,1)<>"",INDEX(Exercício[],FimDoExercício-LinhaInicialDoExercício-H28,1)),"") -> 2017-05-24 | E28: QUA | F28: =IFERROR((IF(INDEX(Exercício[],FimDoExercício-LinhaInicialDoExercício-H28,1)<>"",INDEX(Exercício[],FimDoExercício-LinhaInicialDoExercício-H28,2),0)),0) -> 20 | G28: =IFERROR((IF(INDEX(Exercício[],FimDoExercício-LinhaInicialDoExercício-H28,2)<>"",INDEX(Exercício[],FimDoExercício-LinhaInicialDoExercício-H28,3),0)),0) -> 295 | H28: 4
D29: =IFERROR(IF(INDEX(Exercício[],FimDoExercício-LinhaInicialDoExercício-H29,1)<>"",INDEX(Exercício[],FimDoExercício-LinhaInicialDoExercício-H29,1)),"") -> 2017-05-23 | E29: TER | F29: =IFERROR((IF(INDEX(Exercício[],FimDoExercício-LinhaInicialDoExercício-H29,1)<>"",INDEX(Exercício[],FimDoExercício-LinhaInicialDoExercício-H29,2),0)),0) -> 40 | G29: =IFERROR((IF(INDEX(Exercício[],FimDoExercício-LinhaInicialDoExercício-H29,2)<>"",INDEX(Exercício[],FimDoExercício-LinhaInicialDoExercício-H29,3),0)),0) -> 270 | H29: 5
D30: =IFERROR(IF(INDEX(Exercício[],FimDoExercício-LinhaInicialDoExercício-H30,1)<>"",INDEX(Exercício[],FimDoExercício-LinhaInicialDoExercício-H30,1)),"") -> 2017-05-22 | E30: SEG | F30: =IFERROR((IF(INDEX(Exercício[],FimDoExercício-LinhaInicialDoExercício-H30,1)<>"",INDEX(Exercício[],FimDoExercício-LinhaInicialDoExercício-H30,2),0)),0) -> 45 | G30: =IFERROR((IF(INDEX(Exercício[],FimDoExercício-LinhaInicialDoExercício-H30,2)<>"",INDEX(Exercício[],FimDoExercício-LinhaInicialDoExercício-H30,3),0)),0) -> 325 | H30: 6
D31: =IFERROR(IF(INDEX(Exercício[],FimDoExercício-LinhaInicialDoExercício-H31,1)<>"",INDEX(Exercício[],FimDoExercício-LinhaInicialDoExercício-H31,1)),"") -> 2017-05-21 | E31: DOM | F31: =IFERROR((IF(INDEX(Exercício[],FimDoExercício-LinhaInicialDoExercício-H31,1)<>"",INDEX(Exercício[],FimDoExercício-LinhaInicialDoExercício-H31,2),0)),0) -> 40 | G31: =IFERROR((IF(INDEX(Exercício[],FimDoExercício-LinhaInicialDoExercício-H31,2)<>"",INDEX(Exercício[],FimDoExercício-LinhaInicialDoExercício-H31,3),0)),0) -> 175 | H31: 7
D32: =IFERROR(IF(INDEX(Exercício[],FimDoExercício-LinhaInicialDoExercício-H32,1)<>"",INDEX(Exercício[],FimDoExercício-LinhaInicialDoExercício-H32,1)),"") -> 2017-05-20 | E32: SÁB | F32: =IFERROR((IF(INDEX(Exercício[],FimDoExercício-LinhaInicialDoExercício-H32,1)<>"",INDEX(Exercício[],FimDoExercício-LinhaInicialDoExercício-H32,2),0)),0) -> 30 | G32: =IFERROR((IF(INDEX(Exercício[],FimDoExercício-LinhaInicialDoExercício-H32,2)<>"",INDEX(Exercício[],FimDoExercício-LinhaInicialDoExercício-H32,3),0)),0) -> 335 | H32: 8
D33: =IFERROR(IF(INDEX(Exercício[],FimDoExercício-LinhaInicialDoExercício-H33,1)<>"",INDEX(Exercício[],FimDoExercício-LinhaInicialDoExercício-H33,1)),"") -> 2017-05-19 | E33: SEX | F33: =IFERROR((IF(INDEX(Exercício[],FimDoExercício-LinhaInicialDoExercício-H33,1)<>"",INDEX(Exercício[],FimDoExercício-LinhaInicialDoExercício-H33,2),0)),0) -> 40 | G33: =IFERROR((IF(INDEX(Exercício[],FimDoExercício-LinhaInicialDoExercício-H33,2)<>"",INDEX(Exercício[],FimDoExercício-LinhaInicialDoExercício-H33,3),0)),0) -> 205 | H33: 9
D34: =IFERROR(IF(INDEX(Exercício[],FimDoExercício-LinhaInicialDoExercício-H34,1)<>"",INDEX(Exercício[],FimDoExercício-LinhaInicialDoExercício-H34,1)),"") -> 2017-05-18 | E34: QUI | F34: =IFERROR((IF(INDEX(Exercício[],FimDoExercício-LinhaInicialDoExercício-H34,1)<>"",INDEX(Exercício[],FimDoExercício-LinhaInicialDoExercício-H34,2),0)),0) -> 20 | G34: =IFERROR((IF(INDEX(Exercício[],FimDoExercício-LinhaInicialDoExercício-H34,2)<>"",INDEX(Exercício[],FimDoExercício-LinhaInicialDoExercício-H34,3),0)),0) -> 285 | H34: 10
D35: =IFERROR(IF(INDEX(Exercício[],FimDoExercício-LinhaInicialDoExercício-H35,1)<>"",INDEX(Exercício[],FimDoExercício-LinhaInicialDoExercício-H35,1)),"") -> 2017-05-17 | E35: QUA | F35: =IFERROR((IF(INDEX(Exercício[],FimDoExercício-LinhaInicialDoExercício-H35,1)<>"",INDEX(Exercício[],FimDoExercício-LinhaInicialDoExercício-H35,2),0)),0) -> 25 | G35: =IFERROR((IF(INDEX(Exercício[],FimDoExercício-LinhaInicialDoExercício-H35,2)<>"",INDEX(Exercício[],FimDoExercício-LinhaInicialDoExercício-H35,3),0)),0) -> 125 | H35: 11
D36: =IFERROR(IF(INDEX(Exercício[],FimDoExercício-LinhaInicialDoExercício-H36,1)<>"",INDEX(Exercício[],FimDoExercício-LinhaInicialDoExercício-H36,1)),"") -> 2017-05-16 | E36: TER | F36: =IFERROR((IF(INDEX(Exercício[],FimDoExercício-LinhaInicialDoExercício-H36,1)<>"",INDEX(Exercício[],FimDoExercício-LinhaInicialDoExercício-H36,2),0)),0) -> 30 | G36: =IFERROR((IF(INDEX(Exercício[],FimDoExercício-LinhaInicialDoExercício-H36,2)<>"",INDEX(Exercício[],FimDoExercício-LinhaInicialDoExercício-H36,3),0)),0) -> 150 | H36: 12
F41: ,
